Cogmind - Beta 17 @@@ ROGUE MODE // 2026.06.30 @ 20:20:55 Player: THN-L0C Result: Destroyed by S-10 Pest with Light Assault Rifle Performance ------------- Evolutions (0) 0 Regions Visited (2) 400 Robots Destroyed (31) 155 Value Destroyed (858) 858 Prototype IDs (1) 20 Alien Tech Used (0) 0 Bonus (0) 0 TOTAL SCORE: 1433 Bonus ------- None Cogmind --------- Core Integrity 0/250 Matter 176/300 Energy 160/160 System Corruption 3% Temperature Cool (0) Movement Treading (240) Ox1 Location -10/Subcaves Parts ------- > --- POWER (1) -------- Light Nuclear Core > --- PROPULSION (2) --- Light Treads > --- UTILITY (2) ------ Large Storage Unit Structural Scanner > --- WEAPON (2) ------- Barrage Gun Battle Cannon > --- INVENTORY (15) --- Subdweller Power Source Subdweller Monowheel Subdweller Monowheel Cooling System Humpback High-capacity Matter Pod (200) Improved Terrain Scanner Seismic Detector Utility Shielding Rainbow Chip Grenade Launcher Mining Laser Peak State ------------ > --- POWER ------------ Light Nuclear Core > --- PROPULSION ------- Light Treads Light Treads > --- UTILITY ---------- Large Storage Unit Structural Scanner > --- WEAPON ----------- Barrage Gun Battle Cannon > --- INVENTORY -------- Subdweller Power Source Subdweller Monowheel Subdweller Monowheel Cooling System Humpback High-capacity Matter Pod Improved Terrain Scanner Seismic Detector Utility Shielding Rainbow Chip Grenade Launcher Mining Laser [Rating: 15] Favorites ----------- Power Ion Engine Engine Ion Engine Power Core Light Nuclear Core Propulsion Light Treads Treads Light Treads Wheel Wheel Utility Large Storage Unit Device Seismic Detector Storage Large Storage Unit Protection Utility Shielding Weapon Assault Rifle Energy Gun Improved EM Shotgun Ballistic Gun Assault Rifle Ballistic Cannon Battle Cannon Launcher Grenade Launcher Special Weapon Mining Laser Build | -11 -10 -10 ------- Run | Yrd Mat Sub Slots Evolved . | . . . Power . | . . . Propulsion . | . . . Utility . | . . . Weapon . | . . . Parts Attached 20 | 8 4 8 Power 3 | 2 . 1 Engine 2 | 2 . . Core 1 | . . 1 Reactor . | . . . Propulsion 4 | 2 . 2 Treads 2 | . . 2 Leg . | . . . Wheel 2 | 2 . . Hover . | . . . Flight . | . . . Utility 5 | 2 1 2 Device 2 | 1 . 1 Storage 2 | 1 1 . Processor . | . . . Hackware . | . . . Protection 1 | . . 1 Artifact . | . . . Weapon 8 | 2 3 3 Energy Gun 2 | . 2 . Energy Cannon . | . . . Ballistic Gun 3 | 2 . 1 Ballistic Cannon 1 | . . 1 Launcher 1 | . 1 . Special Weapon 1 | . . 1 Impact Weapon . | . . . Slashing Weapon . | . . . Piercing Weapon . | . . . Special Melee Weapon . | . . . Unidentified Prototypes 1 | . 1 . Parts Lost 7 | . . 7 Power 1 | . . 1 Propulsion 3 | . . 3 Utility . | . . . Weapon 3 | . . 3 Highest Loss Streak 2 | . . 2 To Critical Strikes . | . . . Average Backups 11 | 3 11 12 Power 1 | . 1 1 Propulsion 1 | 1 2 1 Utility 5 | 1 4 6 Weapon 3 | . 3 3 Tool/Special . | . . . Unused Backups 14 | . 4 10 Power 1 | . . 1 Propulsion 2 | . . 2 Utility 7 | . 1 6 Weapon 4 | . 3 1 Tool/Special . | . . . Average Slot Usage (%) 99 | . 100 99 Engine 9 | . 14 6 Core 4 | . . 7 Treads 16 | . . 25 Wheel 11 | . 28 2 Device 13 | . 14 13 Storage 14 | . 14 14 Energy Gun 10 | . 4 14 Ballistic Gun 11 | . 23 4 Ballistic Cannon 4 | . . 6 Peak Build Rating 15 | 8 13 15 Average Rating 11 | 5 8 12 On Entrance 6 | . 8 11 Avg Prop Armor Cover (%) . | . . . Naked Turns . | . . . Heaviest Build 32 | 15 32 32 Greatest Support 40 | 26 26 40 Greatest Overweight (x) 3 | . 1 3 Average Overweight (x) . | . . . Largest Inventory Capacity 15 | 8 15 15 Average Capacity 13 | 7 12 15 Most Carried 15 | 7 15 15 Average Carried 12 | 3 11 13 Final Capacity 15 | 8 15 15 Final Carried 15 | 7 15 13 Class Distribution -------------------- 100% | Mutant Dominant Class ---------------- Mutant | -10/Materials Mutant | -10/Subcaves Resources | -11 -10 -10 ----------- Run | Yrd Mat Sub Matter Collected 1216 | 315 475 426 Remotely . | . . . Salvage Created 1097 | 130 464 503 Parts 80 | 15 33 32 Haulers Intercepted . | . . . Recyclers Shooed 1 | 1 . . Parts Field Recycled . | . . . Retrieved Matter . | . . . Parts Self-Destructed . | . . . Prevented . | . . . Parts Restored . | . . . Kills | -11 -10 -10 ------- Run | Yrd Mat Sub Combat Hostiles Destroyed 24 | . 12 12 Guns 16 | . 10 6 Cannons 3 | . . 3 AOE 3 | . 1 2 Classes Destroyed 7 | 3 3 1 Worker 3 | 2 1 . Tunneler 3 | 3 . . Recycler 1 | 1 . . Swarmer 3 | . 3 . Grunt 7 | . 7 . Artisan 2 | . . 2 Subdweller 14 | . 2 12 Best Kill Streak 6 | 4 6 3 Combat Bots Only 5 | . 5 3 Max Kills in Single Turn 1 | 1 1 1 Gunslinging . | . . . Exploded 1 | . 1 1 Melee . | . . . Uniques/NPCs Destroyed . | . . . Combat | -11 -10 -10 -------- Run | Yrd Mat Sub Hostile Shots Fired 76 | . 30 46 Missed 16 | . 7 9 Hits 60 | . 23 37 Projectile 60 | . 23 37 AOE 1 | . . 1 Critical Strikes 1 | . . 1 Damage Taken 1093 | . 256 837 Core 256 | . 43 213 Absorbed by Shields . | . . . Core Remaining (%) 100 | 100 . . Volleys Fired 113 | 14 35 64 Largest 2 | 2 2 2 Hottest 100 | 40 90 100 Shots Fired 192 | 28 68 96 Gun 142 | 28 67 47 Cannon 33 | . . 33 Launcher 8 | . 1 7 Special 9 | . . 9 Kinetic 127 | 28 55 44 Thermal 9 | . . 9 Explosive 8 | . 1 7 Electromagnetic 48 | . 12 36 Robot Hit Streak 40 | 8 15 40 Robot Miss Streak 4 | 2 4 3 Penetration Max . | . . . Secondary Targets . | . . . Shots Hit Robots 121 | 17 44 60 Core Hits 57 | 7 18 32 Critical Kills . | . . . Critical Parts Destroyed . | . . . Critical Strikes . | . . . Melee Attacks . | . . . Impact . | . . . Slashing . | . . . Piercing . | . . . Sneak Attacks . | . . . Combat Hostiles . | . . . Follow-up Attacks . | . . . Damage Inflicted 2310 | 213 627 1470 Guns 1451 | 213 570 668 Cannons 399 | . . 399 Explosions 459 | . 56 403 Melee . | . . . Ramming 1 | . 1 . Kinetic 1128 | 213 401 514 Thermal 92 | . 56 36 Explosive 367 | . . 367 Electromagnetic 722 | . 169 553 Impact . | . . . Slashing . | . . . Piercing . | . . . Highest Corruption 3 | . 3 3 Average Corruption 2 | . 2 3 Corruption Purged . | . . . Corruption Blocked . | . . . Effects 43 | . 16 27 Message Errors 13 | . 4 9 Matter Fused 8 | . 2 6 Heat Flow Errors 6 | . 2 4 Energy Discharges 6 | . 4 2 Data Loss (minor) 5 | . 1 4 Data Loss (major) 2 | . 1 1 Misfires 1 | . . 1 Alerts 1 | . 1 . Weapon Failures 1 | . 1 . Overload Shots . | . . . Overflow Damage 7 | . . 7 Projectiles 7 | . . 7 Explosions . | . . . Melee . | . . . Knockbacks 8 | . . 8 Impact . | . . . Kinetic 8 | . . 8 Secondary . | . . . Self-Inflicted Damage 16 | . . 16 Shots 2 | . . 2 Rammed 1 | . 1 . Targets Rammed 1 | . 1 . Kicked . | . . . Crushed . | . . . Highest Temperature 236 | 6 236 234 Average Temperature 75 | 6 66 96 Received Heat Transfer 195 | . 84 111 Siege Activations . | . . . Martial Activations . | . . . Shielding Activations . | . . . Robots Disrupted . | . . . Combat Hostiles . | . . . Robots Corrupted 2 | . 1 1 Combat Hostiles 2 | . 1 1 Parts Fried 5 | . 2 3 Impact Corruptions . | . . . Robots Melted . | . . . Combat Hostiles . | . . . Parts Melted 1 | . . 1 Heat Transferred 150 | . 100 50 Parts Sabotaged . | . . . Parts Stolen . | . . . Parts Stripped . | . . . Power Chain Reactions 2 | . 1 1 Alert | -11 -10 -10 ------- Run | Yrd Mat Sub Maximum Alert Level . | . . . Low Security (%) 100 | 100 100 . Level 1 . | . . . Level 2 . | . . . Level 3 . | . . . Level 4 . | . . . Level 5 . | . . . High Security . | . . . Max Security . | . . . Peak Influence 118 | 10 118 . Initial 3 | . 3 . Average 40 | 2 45 . Influence Increases 403 | 30 373 . Destroy 0b10 Robot/C 200 | . 200 . Destroy 0b10 Robot/NC 35 | 30 5 . Destroy Leader 40 | . 40 . Successful Hack 40 | . 40 . Select Force Hacks 60 | . 60 . Destroy Structure 13 | . 13 . Lose Combat Pursuer 15 | . 15 . Influence Decreases 403 | 25 321 57 Entered New Map 30 | . 2 28 Time Decay 373 | 25 319 29 Squads Dispatched 3 | . 3 . Investigation 3 | . 3 . Extermination . | . . . Reinforcement . | . . . Assault . | . . . Garrison . | . . . Intercept . | . . . Searches Triggered . | . . . Construction Impeded . | . . . Haulers Reinforced . | . . . Active Scanning Responses . | . . . Cargo Convoy Interrupts . | . . . Stealth | -11 -10 -10 --------- Run | Yrd Mat Sub Distress Signals 1 | . 1 . Communications Jammed . | . . . Distress Signals . | . . . Times Spotted 36 | . 22 14 Peak Tracking Total 6 | . 6 3 Tactical Retreats 1 | . 1 . Traps | -11 -10 -10 ------- Run | Yrd Mat Sub Traps Triggered 3 | . 3 . Indirectly . | . . . Trap Hack Attempts . | . . . Triggered . | . . . Disarmed . | . . . Reprogrammed . | . . . Reused . | . . . Traps Extracted . | . . . Installed . | . . . Triggered . | . . . Machines | -11 -10 -10 ---------- Run | Yrd Mat Sub Machines Disabled . | . . . Max in Single Turn . | . . . Machines Repaired . | . . . Machines Dismantled . | . . . Machines Sabotaged . | . . . Overloaded Fab Kills . | . . . Hacking | -11 -10 -10 --------- Run | Yrd Mat Sub Machines Accessed 11 | . 10 1 Terminals 8 | . 8 . Fabricators . | . . . Repair Stations . | . . . Recycling Units 2 | . 2 . Scanalyzers . | . . . Garrison Access . | . . . Total Hacks 32 | . 28 4 Successful 20 | . 16 4 Failed 12 | . 12 . Catastrophic . | . . . Database Lockouts . | . . . Manual 28 | . 28 . Terminals 26 | . 26 . Fabricators . | . . . Repair Stations . | . . . Recycling Units 2 | . 2 . Scanalyzers . | . . . Garrison Access . | . . . Terminal Hacks 5 | . 1 4 Record 4 | . . 4 Terminal Index 1 | . 1 . Fabricator Hacks . | . . . Repair Station Hacks . | . . . Recycling Unit Hacks . | . . . Scanalyzer . | . . . Garrison Access Hacks . | . . . Unauthorized Hacks 15 | . 15 . Terminals 13 | . 13 . Assimilate 1 | . 1 . Botnet 6 | . 6 . Operators 1 | . 1 . Skim 5 | . 5 . Fabricators . | . . . Repair Stations . | . . . Recycling Units 2 | . 2 . Tunnel 2 | . 2 . Scanalyzers . | . . . Garrison Access . | . . . Data Cores Recovered . | . . . Used . | . . . Hacking Detections 8 | . 8 . Full Trace Events . | . . . Feedback Events . | . . . Feedback Blocked . | . . . Robot Schematics Acquired . | . . . Robots Built . | . . . Authchips . | . . . Time . | . . . Total Robot Build Rating . | . . . Part Schematics Acquired . | . . . Parts Built . | . . . Authchips . | . . . Time . | . . . Total Part Build Rating . | . . . Part Studies Acquired . | . . . Parts Repaired . | . . . Time . | . . . Parts Recycled . | . . . Recycled Matter . | . . . Retrieved Matter . | . . . Retrieved Components . | . . . Parts Scanalyzed . | . . . Part Schematics Acquired . | . . . Parts Damaged . | . . . Bothacking | -11 -10 -10 ------------ Run | Yrd Mat Sub Used RIF Installer . | . . . Robots Hacked . | . . . Non-combat . | . . . Combat . | . . . Robot Hacks Applied . | . . . Relay Couplers Released . | . . . Fabnet Peak Effective % . | . . . Robots Rewired . | . . . Allies Hacked . | . . . Hacks Repelled . | . . . Allies | -11 -10 -10 -------- Run | Yrd Mat Sub Total Allies . | . . . Largest Group . | . . . Highest-Rated Group . | . . . Highest-Rated Ally . | . . . Total Orders . | . . . Ally Attacks . | . . . Total Damage . | . . . Kills . | . . . Allies Corrupted . | . . . Allies Melted . | . . . Intel | -11 -10 -10 ------- Run | Yrd Mat Sub Active Infowar (turns) 2655 | 45 973 1637 Structural 1239 | . . 1239 Seismic 1416 | 45 973 398 Robot Analysis Total . | . . . Derelict Logs Recovered 1 | . . 1 Drone Launches . | . . . Drone Recoveries . | . . . Exploration | -11 -10 -10 ------------- Run | Yrd Mat Sub Turns Passed 2808 | 133 973 1702 Spaces Moved 1618 | 82 641 895 Core 7 | 7 . . Treads 800 | . . 800 Legs . | . . . Wheels 811 | 75 641 95 Hover . | . . . Flight . | . . . Fastest Speed 50 | 50 90 105 Average Speed 128 | 86 98 154 Slowest Speed 160 | 90 105 160 Overloaded Moves . | . . . Propulsion Burnouts . | . . . Robots Hopped . | . . . Potential Cave-ins . | . . . Cave-ins Triggered . | . . . Exploration Rate (%) 48 | 4 90 50 Regions Visited 2 Branch Regions 1 Pre-discovered Areas 4 | . 3 1 Known Exits Taken 1 | . 1 . Unknown Exits Taken 1 | 1 . . Scrap Searched 2 | . . 2 Spaces Dug 7 | . 7 . Terrain Destroyed 47 | . 9 38 Melee . | . . . Projectile . | . . . AOE 47 | . 9 38 Terrain Rammed . | . . . Walls Destroyed . | . . . Machines Disabled . | . . . Actions | -11 -10 -10 --------- Run | Yrd Mat Sub Total 2126 | 112 919 1095 Wait 324 | 2 219 103 Move 1616 | 81 640 895 Hop . | . . . Pick Up 26 | 7 13 6 Fast Attach 6 | 6 . . Attach 7 | 1 . 6 Detach . | . . . Swap 24 | 1 4 19 Drop 9 | . 7 2 Fire 113 | 14 35 64 Melee . | . . . Ram 1 | . 1 . Kick . | . . . Crush . | . . . Escape Stasis . | . . . Rewire . | . . . Trap . | . . . Miscellaneous . | . . . Route ------- -11/Scrapyard -10/Materials (discovered 5 exits: *Mat x3 / *Min / *Sub) -10/Subcaves (discovered 2 exits: *Mat / Rec) History --------- Turn | Location | Event 4 | -11/Scrapyard | Discovered new exit (range 15) 134 | -11/Scrapyard | Entered Materials 284 | -10/Materials | Discovered new exit (range 16) 310 | -10/Materials | Build established: Mutant 532 | -10/Materials | Discovered new exit (range 16) 624 | -10/Materials | Identified exit to Materials 634 | -10/Materials | Derelicts attacked the area 676 | -10/Materials | Identified exit to Subcaves 676 | -10/Materials | Identified exit to Mines 1107 | -10/Materials | Entered Subcaves 1108 | -10/Subcaves | Identified exit to Materials 1108 | -10/Subcaves | Identified exit to Recycling 1127 | -10/Subcaves | Learned location of Recycling (-8) 1215 | -10/Subcaves | Ambushed by angry Subdweller bent on revenge 1400 | -10/Subcaves | Visited Clippyterm 1405 | -10/Subcaves | Learned Research security intel 1405 | -10/Subcaves | Learned Factory emergency access door positions 1537 | -10/Subcaves | Shifting Twisted Machinery released Battle Cannon 1547 | -10/Subcaves | Shifting Twisted Machinery released Sub. Monowheel 2059 | -10/Subcaves | Core integrity fell below 50% 2223 | -10/Subcaves | Disturbed a concealed Subdweller 2315 | -10/Subcaves | Shifting Twisted Machinery released Sub. Shrapnel Launcher 2324 | -10/Subcaves | Shifting Twisted Machinery released Barrage Gun 2537 | -10/Subcaves | A Subdweller sparked back to life 2537 | -10/Subcaves | A Subdweller sparked back to life 2537 | -10/Subcaves | A Subdweller sparked back to life 2539 | -10/Subcaves | Core integrity fell below 20% 2567 | -10/Subcaves | Found Prototype Processor 2809 | -10/Subcaves | Destroyed by S-10 Pest with Light Assault Rifle Last Messages --------------- 02547_ 6P-8IR(R) destroyed. 02551_ CJ-1LD(R) affixes Scrap Shield Fragment to Scrap Shield. 02556_ CJ-1LD(R) destroyed. 02562_ Acquired 15 matter. 02567_ Acquired Prototype Processor. 02570_ Acquired 7 matter. 02573_ Acquired 5 matter. 02577_ System corrupted: Energy discharge (-33). 02579_ Acquired 39 matter. 02587_ The unstable cave ceiling collapses. 02589_ 5U-H02(R): "MADSUB!" 02595_ 5U-H02(R) destroyed. 02667_ D1OEHPUY#TST%GV E,OJP 02679_ Subatomizers dissect the Corrupted Disposable Heat Sink. 02720_ MOW%4OX:8OY5#Z1XBMX2PTLSLI>NM8KB 02761_ System corrupted: Heat flow error (+123). 02804_ S-10 Pest knocked back. 02805_ Lgt. Treads destroyed. 02807_ Destroyed Lgt. Ion Engine. 02807_ S-10 Pest knocked back. Map ----- +----------------------------------------------------+ | | | ?????????????????????????????????????????????????? | | ?????????????????????????????????????????????????? | | ?????????????????????????????????????????????????? | | ?????????????????????????????????????????????????? | | ?????????????????????????????????????????????????? | | ?????????????????????????????????????????????????? | | ?????????????????????????????????????????????????? | | ?????????????????????????????????????????????????? | | ?????????????????????????????????????????????????? | | ?????????????????????????????????????????????????? | | ?????????????????????????????????????????????????? | | ?????????????????????????????????????????????????? | | ?????????????????????????????????????????????????? | | ???????????????????????????????####??????????????? | | ????????????????????????????#######???####?#####?? | | ????????????????????????????#### ##??############# | | ????????????????????????????## ##??### ####"#### | | ???????????????????????????### ##??## ## | | #####??????????????????????### ##???##### % | | ######?????????????????????## | ########## | | ## #####?????????????######## #########! # # | | ## #####????????????######## #### # "% #### | | ## ####???????????## " ####### | | ###???????????## " ######?? | | ##???????????## @ # # %]"###????? | | ##???????????## # "##????? | | #######??????### s !& ###????? | | #########????## ## ]%# ####### ????? | | #### ########### ### &|######## ?????? | | ####### ######### #### & ###??????????? | | "" #######" # #### ##### ##???????????? | | ##" "#####" ### ##???????????? | | ### ""##" |[ ### ???????????? | | #### "##"""" ######&&![ #### % ???????????? | | #### """ """ ########%####### ??????????? | | """ " " " ###??##&%!######% % ???????????? | | " " """ ###???##|####??## %% % ????????????? | | "" """" "###???#######?? ?????????????? | | "###????####??????????????????????????? | | " ### ??????????????????????????????????? | | ###???????????????????????????????????? | | ##????????????????????????????????????? | | ###????????????????????????????????????? | | ### ###### ????????????????????????????????????? | | ############?????????????????????????????????????? | | ##########???????????????????????????????????????? | | ###### ##???????????????????????????????????????? | | ## ##???????????????????????????????????????? | | ## ##???????????????????????????????????????? | +----------------------------------------------------+ Best States ------------- Heat Dissipation 25 Energy Generation 14 Energy Capacity 250 Matter Stores 300 Matter Capacity 300 Sight Range 16 Terrain Scan Density 10 Utility Shielding 33 Evasion (%) 44 Recoil Reduction 2 Item Schematics ----------------- None Robot Schematics ------------------ None Fabricated ------------ Nothing Repaired ---------- Nothing Studied --------- None Alien Tech Used ----------------- None Achievements -------------- None Challenges ------------ None Game ------ Seed BurstPulseNeutralizer Manual? 0 Play Time 00:20:25 Cumulative 409.5 hours Start 2026.06.30 @ 20:04:16 End 2026.06.30 @ 20:20:55 Sessions 1 Manual Loads 0 Difficulty Rogue Special Mode None Game No. 305 Rogue 305 Adventurer 0 Explorer 0 Win Type - Total 9 Types 4/0/3/2/0/0/0/0/0/0 Lore% 76 Gallery% 73 Achievement% 50 Wizard Run 0 Options --------- Layout 2 ASCII 0 Keyboard 1 Movement Vi Keybinds 0 Fullscreen 2 Font 32/SmallcapsGlow Map View 77x44 Zoom Use 0% Tactical HUD 1 Map Filters NONE Filters NONE Steam 1 RUN: 77771fb1-1ef5-4790-a887-e5327b433962